bitfinex/quotes_BTCUSD_20241222
["timestamp","ask_amount","ask_price","bid_price","bid_amount"]
[1734889088202,0.00162707,95814.0,95813.0,0.87145978]
[1734889089254,0.00162707,95814.0,95813.0,0.66272078]
[1734889090089,0.00162707,95814.0,95813.0,0.47534821]
[1734889091173,0.00162707,95814.0,95813.0,0.1303]
[1734889092785,0.00162707,95814.0,95813.0,0.13134359]
[1734889092940,0.00162707,95814.0,95813.0,0.1303]
[1734889093645,0.00162707,95814.0,95813.0,0.13134353]
[1734889093843,0.00162707,95814.0,95813.0,0.47657925]
[1734889094047,8.56e-05,95824.0,95813.0,0.47553572]
[1734889094247,0.1013084,95823.0,95818.0,0.208727]
[1734889096052,0.1013084,95823.0,95818.0,0.210727]
[1734889096582,0.1013084,95823.0,95818.0,0.208727]
[1734889097121,0.1013084,95823.0,95818.0,0.209727]
[1734889097453,0.1013084,95823.0,95822.0,0.20872]
[1734889097565,0.00024798,95824.0,95823.0,0.079]
[1734889099729,0.00024798,95824.0,95823.0,0.08004351]
[1734889100007,0.00024798,95824.0,95823.0,0.08104351]
[1734889102364,0.00024798,95824.0,95823.0,0.12664351]
[1734889102528,0.00024798,95824.0,95823.0,0.23954834]
[1734889102727,0.00024798,95824.0,95823.0,0.79661831]
[1734889103039,9.8e-07,95824.0,95823.0,0.88914211]
[1734889103261,0.0001556,95832.0,95830.0,0.45811321]
[1734889103468,0.00020968,95832.0,95831.0,0.37795157]
[1734889103688,0.00020968,95832.0,95831.0,0.3769084]
[1734889104074,6.8e-07,95832.0,95831.0,0.3769084]
[1734889106071,0.00100068,95832.0,95831.0,0.3829084]
[1734889106275,6.8e-07,95832.0,95831.0,0.3769084]
[1734889106476,6.8e-07,95832.0,95831.0,0.72183742]
[1734889106681,0.00096068,95832.0,95831.0,0.73083742]
[1734889107289,0.00096068,95832.0,95831.0,1.14435016]
[1734889107906,0.00096068,95832.0,95831.0,0.89304176]
[1734889108315,0.00096068,95832.0,95831.0,0.84644176]
[1734889108692,0.00096068,95832.0,95831.0,0.43292902]
[1734889109532,0.208672,95844.0,95832.0,0.208698]
[1734889109736,0.1013084,95843.0,95832.0,0.208698]
[1734889111558,0.208676,95842.0,95828.0,0.208705]
[1734889111798,0.20869,95836.0,95825.0,0.09338621]
[1734889112003,0.208681,95840.0,95825.0,0.09338621]
[1734889112004,0.1013084,95835.0,95825.0,0.09338621]
[1734889112354,0.1013084,95835.0,95826.0,0.09338621]
[1734889113387,0.1043084,95835.0,95826.0,0.09338621]
[1734889113540,0.208694,95834.0,95826.0,0.09338621]
[1734889113881,0.208704,95830.0,95820.0,0.208723]
[1734889114096,0.1013084,95829.0,95820.0,0.208723]
[1734889116186,0.1013084,95829.0,95817.0,0.09338621]
[1734889116353,0.1013084,95829.0,95818.0,0.09338621]
[1734889117230,0.208709,95827.0,95818.0,0.09338621]
[1734889117346,0.208713,95825.0,95818.0,0.09338621]
[1734889117582,0.1013084,95824.0,95811.0,0.09338621]
[1734889117788,0.023,95823.0,95811.0,0.09338621]
[1734889118026,0.208731,95817.0,95811.0,0.09338621]
[1734889118225,0.208735,95815.0,95811.0,0.09338621]
[1734889118431,0.3100434,95815.0,95811.0,0.09338621]
[1734889118866,0.3100434,95815.0,95808.0,0.0001712]
[1734889119056,0.3100434,95815.0,95814.0,0.00033358]
[1734889119414,0.3120434,95815.0,95814.0,0.00033358]
[1734889123029,0.3350434,95815.0,95814.0,0.00033358]
[1734889123202,0.5605434,95815.0,95814.0,0.00033358]
[1734889135180,0.7605434,95815.0,95814.0,0.00033358]
[1734889135384,0.408748,95809.0,95808.0,0.0001712]
[1734889135590,0.408748,95809.0,95808.0,0.00022528]
[1734889135591,5.2377564,95809.0,95808.0,0.00022528]
[1734889136611,5.2467564,95809.0,95808.0,0.00122528]
[1734889137407,4.32672301,95809.0,95808.0,0.00122528]
[1734889137743,3.24972301,95809.0,95808.0,0.00122528]
[1734889137947,2.63872301,95809.0,95808.0,0.00122528]
[1734889138665,0.80364803,95809.0,95808.0,0.00122528]
[1734889138868,4.11364803,95809.0,95808.0,0.00122528]
[1734889139054,3.93164803,95809.0,95808.0,0.00122528]
[1734889139619,3.59364803,95809.0,95808.0,0.00122528]
[1734889139735,3.56864803,95809.0,95808.0,0.00122528]
[1734889139938,3.41664803,95809.0,95808.0,0.00122528]
[1734889141741,1.59564803,95809.0,95808.0,0.00122528]
[1734889141878,0.90364803,95809.0,95808.0,0.00122528]
[1734889144887,0.80364803,95809.0,95808.0,0.00122528]
[1734889148874,0.72094803,95809.0,95808.0,0.00122528]
[1734889152017,0.62094803,95809.0,95808.0,0.00122528]
[1734889152193,0.72094803,95809.0,95808.0,0.00122528]
[1734889153714,0.85014803,95809.0,95808.0,0.00122528]
[1734889153937,0.1,95795.0,95788.0,0.0001712]
[1734889154084,0.381757,95805.0,95788.0,0.0001712]
[1734889154085,0.5831004,95789.0,95788.0,0.0001712]
[1734889154439,0.5831004,95789.0,95765.0,0.09338621]
[1734889154440,0.481807,95782.0,95765.0,0.09338621]
[1734889154639,0.6831154,95782.0,95765.0,0.09338621]
[1734889155182,0.69104042,95782.0,95765.0,0.09338621]
[1734889156086,0.69104042,95782.0,95763.0,0.000171]
[1734889157215,0.70004042,95782.0,95763.0,0.000171]
[1734889157590,0.70133021,95782.0,95763.0,0.000171]
[1734889158394,0.72197328,95782.0,95763.0,0.000171]
[1734889158996,0.73097328,95782.0,95763.0,0.000171]
[1734889159198,0.72197328,95782.0,95763.0,0.000171]
[1734889159525,0.73097328,95782.0,95763.0,0.000171]
[1734889159930,0.71033021,95782.0,95763.0,0.000171]
[1734889160142,0.71033021,95782.0,95776.0,0.0803]
[1734889160522,0.71033021,95782.0,95767.0,0.0803]
[1734889163946,0.71033021,95782.0,95773.0,0.0492]
[1734889166086,0.61033021,95782.0,95773.0,0.0492]
[1734889166286,0.61033021,95782.0,95781.0,0.0824712]
[1734889167279,0.71033021,95782.0,95781.0,0.0824712]
[1734889168429,0.70240519,95782.0,95781.0,0.0824712]
[1734889169144,0.70240519,95782.0,95781.0,0.0001712]
[1734889170315,0.71034223,95782.0,95781.0,0.0001712]
[1734889175972,5.18234223,95782.0,95781.0,0.0001712]
[1734889176401,5.17440519,95782.0,95781.0,0.0001712]
[1734889176601,5.18234537,95782.0,95781.0,0.0001712]
[1734889177540,4.92534537,95782.0,95781.0,0.0001712]
[1734889178774,4.17234537,95782.0,95781.0,0.0001712]
[1734889178953,0.71034537,95782.0,95781.0,0.0001712]
[1734889179358,0.84334537,95782.0,95781.0,0.0001712]
[1734889180427,0.81434537,95782.0,95781.0,0.0001712]
[1734889180709,0.51034537,95782.0,95781.0,0.0001712]
[1734889180929,0.61034537,95782.0,95781.0,0.0001712]
[1734889181258,0.51034537,95782.0,95781.0,0.0001712]
[1734889181689,0.71034537,95782.0,95781.0,0.0001712]
[1734889182052,0.61034537,95782.0,95781.0,0.0001712]
[1734889183054,0.48734537,95782.0,95781.0,0.0001712]
[1734889183268,0.11824858,95782.0,95781.0,0.1293712]
[1734889184368,0.10924858,95782.0,95781.0,0.1293712]
[1734889184757,0.11724858,95782.0,95781.0,0.1293712]
[1734889185831,0.10924858,95782.0,95781.0,0.1293712]
[1734889186231,0.11024858,95782.0,95781.0,0.1293712]
[1734889187079,0.10924858,95782.0,95781.0,0.1293712]
[1734889187277,0.10924858,95782.0,95781.0,0.1303712]
[1734889187582,0.10924858,95782.0,95781.0,0.1293712]
[1734889187999,0.11024858,95782.0,95781.0,0.1293712]
[1734889189702,0.10924858,95782.0,95781.0,0.1293712]
[1734889190031,0.11024858,95782.0,95781.0,0.1293712]
[1734889190449,0.10924858,95782.0,95781.0,0.1293712]
[1734889190680,0.10924858,95782.0,95781.0,0.1303712]
[1734889191081,0.10924858,95782.0,95781.0,0.1293712]
[1734889192282,0.10924858,95782.0,95781.0,0.1303712]
[1734889192739,0.10924858,95782.0,95781.0,0.1293712]
[1734889192940,0.10924858,95782.0,95781.0,0.1313712]
[1734889196075,0.00794018,95782.0,95781.0,0.1313712]
[1734889196751,0.00794018,95782.0,95781.0,0.1324151]
[1734889197178,0.00794018,95782.0,95781.0,0.3412241]
[1734889197355,8.57e-05,95788.0,95787.0,0.208796]
[1734889197559,8.57e-05,95788.0,95787.0,0.329596]
[1734889200489,8.57e-05,95788.0,95787.0,0.42312769]
[1734889201616,8.57e-05,95788.0,95787.0,0.329596]
[1734889203504,0.0010857,95788.0,95787.0,0.331596]
[1734889209281,0.0010857,95788.0,95787.0,0.1228]
[1734889209526,0.1023941,95788.0,95787.0,0.002]
[1734889209743,0.11033428,95788.0,95787.0,0.002]
[1734889210130,0.11033428,95788.0,95781.0,0.17050289]
[1734889210332,0.11033428,95788.0,95781.0,0.09370289]
[1734889210333,0.023,95786.0,95781.0,0.09370289]
[1734889210532,0.208807,95782.0,95781.0,0.09370289]
[1734889210859,0.3101154,95782.0,95781.0,0.09370289]
[1734889211075,0.31805558,95782.0,95781.0,0.09370289]
[1734889211186,0.31805558,95782.0,95781.0,0.0001712]
[1734889211832,0.34105558,95782.0,95781.0,0.0001712]
[1734889212071,0.49105558,95782.0,95781.0,0.0001712]
[1734889212935,0.49105558,95782.0,95781.0,0.0011712]
[1734889213284,0.49105558,95782.0,95781.0,0.0001712]
[1734889213700,0.49805558,95782.0,95781.0,0.0001712]
[1734889230466,0.49796352,95782.0,95781.0,0.0001712]
[1734889230958,0.4901154,95782.0,95781.0,0.0001712]
[1734889239391,0.49798488,95782.0,95781.0,0.0001712]
[1734889241353,0.58108488,95782.0,95781.0,0.0001712]
[1734889245367,0.49798488,95782.0,95781.0,0.0001712]
[1734889247546,0.67868488,95782.0,95781.0,0.0001712]
[1734889247752,5.12168488,95782.0,95781.0,0.0001712]
[1734889247975,5.15068488,95782.0,95781.0,0.0001712]
[1734889248386,5.17429334,95782.0,95781.0,0.0001712]
[1734889249212,5.27429334,95782.0,95781.0,0.0001712]
[1734889249384,1.51659334,95782.0,95781.0,0.0001712]
[1734889250147,1.39298488,95782.0,95781.0,0.0001712]
[1734889250354,0.59798488,95782.0,95781.0,0.0001712]
[1734889250703,0.69798488,95782.0,95781.0,0.0001712]
[1734889250908,0.59798488,95782.0,95781.0,0.0001712]
[1734889251363,0.69798488,95782.0,95781.0,0.0001712]
[1734889251727,0.59798488,95782.0,95781.0,0.0001712]
[1734889251931,0.69798488,95782.0,95781.0,0.0001712]
[1734889252361,0.59798488,95782.0,95781.0,0.0001712]
[1734889252736,0.69798488,95782.0,95781.0,0.0001712]
[1734889253177,0.59798488,95782.0,95781.0,0.0001712]
[1734889253318,0.69798488,95782.0,95781.0,0.0001712]
[1734889255016,0.59798488,95782.0,95781.0,0.0001712]
[1734889255219,0.69798488,95782.0,95781.0,0.0001712]
[1734889261175,0.59798488,95782.0,95781.0,0.0001712]
[1734889261381,0.69798488,95782.0,95781.0,0.0001712]
[1734889264886,5.16998488,95782.0,95781.0,0.0001712]
[1734889266038,5.09359334,95782.0,95781.0,0.0001712]
[1734889266458,4.20559334,95782.0,95781.0,0.0001712]
[1734889266634,2.25559334,95782.0,95781.0,0.0001712]
[1734889266837,1.29959334,95782.0,95781.0,0.0001712]
[1734889267019,0.62159334,95782.0,95781.0,0.0001712]
[1734889267225,0.59798488,95782.0,95781.0,0.0001712]
[1734889268011,0.49798488,95782.0,95781.0,0.0001712]
[1734889268636,0.4901154,95782.0,95781.0,0.0001712]
[1734889269083,0.49799284,95782.0,95781.0,0.0001712]
[1734889275257,0.11618584,95782.0,95781.0,0.1258712]
[1734889276416,0.10918584,95782.0,95781.0,0.1258712]
[1734889277043,0.11518584,95782.0,95781.0,0.1258712]
[1734889279773,0.01387744,95782.0,95781.0,0.1258712]
[1734889280674,0.00787744,95782.0,95781.0,0.12691513]
[1734889280887,0.01087744,95782.0,95781.0,0.12691513]
[1734889281501,8.57e-05,95788.0,95787.0,0.208796]
[1734889281586,0.02055798,95844.0,95808.0,0.20875]
[1734889281789,0.01044412,95837.0,95808.0,0.20875]
[1734889282012,0.09371458,95826.0,95808.0,0.20875]
[1734889282277,0.208636,95861.0,95831.0,0.2087]
[1734889282392,0.01055831,95851.0,95831.0,0.2087]
[1734889282592,0.00018723,95832.0,95831.0,0.3344]
[1734889284287,0.00018723,95832.0,95831.0,0.3374]
[1734889284416,0.00018723,95832.0,95831.0,0.3344]
[1734889284824,0.00118723,95832.0,95831.0,0.3394]
[1734889285306,0.00118723,95832.0,95831.0,0.6850097]
[1734889285514,0.10249563,95832.0,95831.0,0.4763097]
[1734889285713,0.10249563,95832.0,95831.0,0.4278097]
[1734889285984,0.12549563,95832.0,95831.0,0.3506097]
[1734889286543,0.12449563,95832.0,95822.0,0.0781]
[1734889286773,0.3100084,95831.0,95822.0,0.0781]
[1734889287177,0.20871,95827.0,95822.0,0.0781]
[1734889287383,0.208713,95825.0,95822.0,0.0781]
[1734889287581,0.1013084,95824.0,95822.0,0.0781]
[1734889289183,0.1013084,95824.0,95823.0,0.208718]
[1734889290170,0.1023084,95824.0,95823.0,0.208718]
[1734889290375,0.101394,95824.0,95822.0,0.0781]
[1734889290778,0.101394,95824.0,95823.0,0.004]
[1734889291225,0.101394,95824.0,95822.0,0.0781]
[1734889291396,0.101394,95824.0,95823.0,0.004]
[1734889291934,0.101394,95824.0,95822.0,0.0781]
[1734889293331,0.208718,95823.0,95822.0,0.0781]
[1734889293662,0.3100264,95823.0,95822.0,0.0781]
[1734889294034,0.3100264,95823.0,95822.0,0.0821]
[1734889294371,0.3100264,95823.0,95822.0,0.0781]
[1734889294554,0.208733,95816.0,95815.0,0.0781]
[1734889294754,0.208746,95810.0,95807.0,0.0781]
[1734889294891,0.1013084,95809.0,95807.0,0.0781]
[1734889296221,0.20875,95808.0,95807.0,0.0781]
[1734889296466,0.3100584,95808.0,95807.0,0.0781]
[1734889297455,0.1013084,95808.0,95807.0,0.0781]
[1734889297663,0.10892343,95808.0,95807.0,0.0781]
[1734889297818,0.11092343,95808.0,95807.0,0.0781]
[1734889298019,0.1033084,95808.0,95807.0,0.0781]
[1734889299354,0.1013084,95808.0,95807.0,0.0781]
[1734889299756,0.1013084,95808.0,95807.0,0.0791]
[1734889299957,0.1013084,95808.0,95807.0,0.0781]
[1734889300445,0.1013084,95808.0,95807.0,0.0811]
[1734889300602,0.1013084,95808.0,95807.0,0.0781]
[1734889300874,0.1013084,95808.0,95807.0,0.0791]
[1734889301125,0.1013084,95808.0,95807.0,0.0781]
[1734889301513,0.1013084,95808.0,95807.0,0.0791]
[1734889302465,0.1013084,95808.0,95807.0,0.0792712]
[1734889303218,0.1013084,95808.0,95807.0,0.0782712]
[1734889303617,0.1013084,95808.0,95807.0,0.0792712]
[1734889303820,0.00761503,95814.0,95807.0,0.07931493]
[1734889304054,0.1013084,95813.0,95807.0,0.0782712]
[1734889304238,0.1013084,95813.0,95807.0,0.0792712]
[1734889304426,0.1013084,95813.0,95807.0,0.0782712]
[1734889304836,0.1013084,95813.0,95807.0,0.0792712]
[1734889305035,0.1013084,95813.0,95807.0,0.0782712]
[1734889305554,0.00761503,95812.0,95807.0,0.0782712]
[1734889305729,0.1013084,95811.0,95809.0,0.208748]
[1734889306283,0.00761503,95810.0,95809.0,0.208748]
[1734889307217,0.00761503,95810.0,95809.0,0.211748]
[1734889307421,0.00761503,95810.0,95809.0,0.208748]
[1734889307759,0.00761503,95810.0,95809.0,0.211748]
[1734889308072,0.00761503,95810.0,95809.0,0.003]
[1734889308244,0.10892343,95810.0,95809.0,0.003]
[1734889308850,0.31766943,95810.0,95809.0,0.003]
[1734889310247,0.52641643,95810.0,95807.0,0.0001712]
[1734889310448,0.20875,95808.0,95807.0,0.0001712]
[1734889310668,0.3100584,95808.0,95807.0,0.0001712]
[1734889311300,0.31767343,95808.0,95807.0,0.0001712]
[1734889311943,0.32067343,95808.0,95807.0,0.0001712]
[1734889312145,0.11192343,95808.0,95807.0,0.0001712]
[1734889315724,0.10892343,95808.0,95807.0,0.0001712]
[1734889317136,0.10992343,95808.0,95807.0,0.0001712]
[1734889323245,0.12054243,95808.0,95807.0,0.0001712]
[1734889325153,0.10992343,95808.0,95807.0,0.0001712]
[1734889326252,0.10992343,95808.0,95807.0,0.0823712]
[1734889326479,0.10992343,95808.0,95807.0,0.1319712]
[1734889332229,0.10956434,95808.0,95807.0,0.1319712]
[1734889333737,0.10956434,95808.0,95807.0,0.22524416]
[1734889333941,0.31831434,95808.0,95807.0,0.17564416]
[1734889334513,0.10956434,95808.0,95807.0,0.17564416]
[1734889335300,0.10956434,95808.0,95807.0,0.0823712]
[1734889336529,0.10956434,95808.0,95807.0,0.0001712]
[1734889336530,0.25956434,95808.0,95807.0,0.0001712]
[1734889336923,0.28256434,95808.0,95807.0,0.0001712]
[1734889337683,0.36576434,95808.0,95807.0,0.0001712]
[1734889338130,0.36476434,95808.0,95807.0,0.0001712]
[1734889338320,0.36876434,95808.0,95807.0,0.0001712]
[1734889338717,4.69976434,95808.0,95807.0,0.0001712]
[1734889339054,3.05976434,95808.0,95807.0,0.0001712]
[1734889339256,3.08335269,95808.0,95807.0,0.0001712]
[1734889339637,3.05576434,95808.0,95807.0,0.0001712]
[1734889339984,3.06276434,95808.0,95807.0,0.0001712]
[1734889340748,3.0840246,95808.0,95807.0,0.0001712]
[1734889341306,3.0770246,95808.0,95807.0,0.0001712]
[1734889341727,3.0830246,95808.0,95807.0,0.0001712]
[1734889342155,3.0400246,95808.0,95807.0,0.0001712]
[1734889342557,3.0340246,95808.0,95807.0,0.0001712]
[1734889343145,0.3860246,95808.0,95807.0,0.0001712]
[1734889343356,0.29056434,95808.0,95807.0,0.0001712]
[1734889345150,0.28156434,95808.0,95807.0,0.0001712]
[1734889345917,0.29056434,95808.0,95807.0,0.0001712]
[1734889346339,0.28156434,95808.0,95807.0,0.0001712]
[1734889346747,0.29056434,95808.0,95807.0,0.0001712]
[1734889347552,0.11756434,95808.0,95807.0,0.0001712]
[1734889347729,0.11756434,95808.0,95807.0,0.0825712]
[1734889348928,0.10856434,95808.0,95807.0,0.0825712]
[1734889349111,0.10864994,95808.0,95807.0,0.0825712]
[1734889349316,0.11164994,95808.0,95807.0,0.0825712]
[1734889349738,0.10403491,95808.0,95807.0,0.0825712]
[1734889349944,0.1116167,95808.0,95807.0,0.0825712]
[1734889351646,0.1086167,95808.0,95807.0,0.0825712]
[1734889352060,0.1096167,95808.0,95807.0,0.0825712]
[1734889352911,0.1096167,95808.0,95807.0,0.0001712]
[1734889353115,0.2826167,95808.0,95807.0,0.0001712]
[1734889355153,0.27503491,95808.0,95807.0,0.0001712]
[1734889355526,0.25203491,95808.0,95807.0,0.0001712]
[1734889358333,0.25203491,95808.0,95807.0,0.1286712]
[1734889359881,0.25961802,95808.0,95807.0,0.0825712]
[1734889360845,0.25961802,95808.0,95807.0,0.0001712]
[1734889361917,0.25203491,95808.0,95807.0,0.0001712]
[1734889362114,0.25961947,95808.0,95807.0,0.0001712]
[1734889381218,4.83491947,95808.0,95807.0,0.0001712]
[1734889381467,0.358776,95796.0,95795.0,0.09327296]
[1734889381708,0.4830844,95796.0,95795.0,0.09327296]
[1734889382305,0.49066896,95796.0,95795.0,0.09327296]
[1734889382509,0.358807,95782.0,95780.0,0.00522]
[1734889382714,0.4831154,95782.0,95780.0,0.00522]
[1734889382971,0.4831154,95782.0,95781.0,0.00071267]
[1734889383462,0.49069996,95782.0,95781.0,0.00071267]
[1734889385046,0.49769996,95782.0,95781.0,0.00071267]
[1734889385248,0.49069996,95782.0,95781.0,0.00071267]
[1734889385694,0.49769996,95782.0,95781.0,0.00071267]
[1734889385891,0.49069996,95782.0,95781.0,0.00071267]
[1734889387342,0.49769996,95782.0,95781.0,0.00071267]
[1734889388418,0.47469996,95782.0,95781.0,0.07731267]
[1734889388608,0.48540406,95782.0,95781.0,0.07731267]
[1734889389030,0.47840406,95782.0,95781.0,0.07731267]
[1734889389658,0.11959706,95782.0,95781.0,0.07731267]
[1734889391067,0.12459706,95782.0,95781.0,0.07731267]
[1734889391343,0.11959706,95782.0,95781.0,0.07731267]
[1734889391728,0.12259706,95782.0,95781.0,0.07731267]
[1734889391956,0.11959706,95782.0,95781.0,0.07731267]
[1734889392343,0.12159706,95782.0,95781.0,0.07731267]
[1734889395229,0.12159706,95782.0,95781.0,0.00071267]
[1734889402516,0.11089296,95782.0,95781.0,0.00071267]
[1734889402722,0.11089296,95782.0,95781.0,0.07731267]
[1734889403348,0.1033084,95782.0,95781.0,0.07731267]
[1734889404331,0.11088956,95782.0,95781.0,0.07731267]
[1734889405083,0.10888956,95782.0,95781.0,0.07731267]
[1734889405519,0.10988956,95782.0,95781.0,0.07731267]
[1734889407573,0.10888956,95782.0,95781.0,0.07731267]
[1734889417044,0.1013084,95782.0,95781.0,0.07731267]
[1734889419215,0.1013084,95782.0,95781.0,0.07831267]
[1734889420704,0.1013084,95782.0,95781.0,0.07731267]
[1734889423942,0.1013084,95782.0,95781.0,0.28612167]
[1734889425128,0.1013084,95782.0,95781.0,0.28712167]
[1734889427382,0.1013084,95782.0,95781.0,0.07831267]
[1734889429809,0.10891023,95782.0,95781.0,0.07831267]
[1734889430640,0.10891023,95782.0,95781.0,0.07731267]
[1734889433627,0.10891023,95782.0,95781.0,0.17058563]
[1734889434847,0.10891023,95782.0,95781.0,0.07731267]
[1734889436298,0.10891023,95782.0,95781.0,0.61080818]
[1734889437867,0.10891023,95782.0,95781.0,0.42426225]
[1734889441477,0.1013084,95782.0,95781.0,0.42426225]
[1734889441817,0.10891133,95782.0,95781.0,0.42426225]
[1734889443503,0.10891133,95782.0,95781.0,0.34766225]
[1734889445827,0.10891133,95782.0,95781.0,0.00071267]
[1734889447164,0.10891133,95782.0,95781.0,0.53583582]
[1734889449646,0.10891133,95782.0,95781.0,0.3477898]
[1734889456370,0.10752796,95782.0,95781.0,0.3477898]
[1734889458527,0.10752796,95782.0,95781.0,0.58284732]
[1734889459928,0.00760293,95782.0,95781.0,0.71124732]
[1734889460268,0.00760293,95782.0,95781.0,0.81124732]
[1734889461662,0.00760293,95782.0,95781.0,1.06166594]
[1734889461868,0.00760293,95782.0,95781.0,0.96166594]
[1734889462371,0.00760293,95782.0,95781.0,0.96266594]
[1734889462548,0.00760293,95782.0,95781.0,0.96166594]
[1734889462854,0.00860293,95782.0,95781.0,0.96266594]
[1734889463116,0.00860293,95782.0,95781.0,0.4771898]
[1734889465732,0.00868863,95782.0,95781.0,0.4771898]
[1734889475144,0.00868863,95782.0,95781.0,0.4284898]
[1734889480613,0.0010857,95782.0,95781.0,0.4284898]
[1734889481438,0.0010857,95782.0,95781.0,0.4772898]
[1734889482257,0.0010857,95782.0,95781.0,0.75905436]
[1734889483727,0.0010857,95782.0,95781.0,0.96235682]
[1734889488564,0.00860218,95782.0,95781.0,0.96235682]
[1734889489145,0.00860218,95782.0,95781.0,0.91355682]
[1734889489547,0.00860218,95782.0,95781.0,0.4284898]
[1734889491044,0.00860218,95782.0,95781.0,0.58329478]
[1734889493306,0.10991058,95782.0,95781.0,0.58329478]
[1734889494196,0.10991058,95782.0,95781.0,0.09556495]
[1734889494600,0.12058022,95782.0,95781.0,0.09556495]
[1734889495819,0.12058022,95782.0,95781.0,0.00171267]
[1734889496025,0.11958022,95782.0,95781.0,0.00071267]
[1734889496382,0.11958022,95782.0,95781.0,0.00171267]
[1734889496710,0.11958022,95782.0,95781.0,0.00071267]
[1734889496916,0.12158022,95782.0,95781.0,0.00071267]
[1734889499217,0.22388022,95782.0,95781.0,0.00071267]
[1734889505440,0.21636374,95782.0,95781.0,0.00071267]
[1734889505928,0.22386272,95782.0,95781.0,0.00071267]
[1734889507723,0.37386272,95782.0,95781.0,0.00071267]
[1734889508075,4.89096272,95782.0,95781.0,0.00071267]
[1734889509760,4.88896272,95782.0,95781.0,0.00071267]
[1734889509966,4.89796272,95782.0,95781.0,0.00071267]
[1734889510169,0.53296272,95782.0,95781.0,0.00071267]
[1734889510578,0.30156272,95782.0,95781.0,0.00071267]
[1734889514553,0.37776272,95782.0,95781.0,0.00071267]
[1734889515299,0.42286272,95782.0,95781.0,0.00071267]
[1734889516850,4.89486272,95782.0,95781.0,0.00071267]
[1734889517341,4.42186272,95782.0,95781.0,0.00071267]
[1734889517746,4.31786272,95782.0,95781.0,0.00071267]
[1734889519282,0.023,95781.0,95780.0,0.00522]
[1734889519460,5.0551174,95781.0,95780.0,0.00532156]
[1734889519669,5.1313174,95781.0,95780.0,0.00532156]
[1734889520101,5.13881638,95781.0,95763.0,0.113409]
[1734889520280,5.13881638,95781.0,95763.0,0.11350517]
[1734889520281,0.4831544,95764.0,95763.0,0.11350517]
[1734889520511,0.5593544,95764.0,95763.0,0.11350517]
[1734889520665,0.56684807,95764.0,95763.0,0.11350517]
[1734889523204,0.57714762,95764.0,95763.0,0.11350517]
[1734889523422,0.60588338,95764.0,95763.0,0.11350517]
[1734889523898,0.59788338,95764.0,95763.0,0.11350517]
[1734889524120,0.60688338,95764.0,95763.0,0.11350517]
[1734889525010,0.59788338,95764.0,95763.0,0.11350517]
[1734889526408,0.60688338,95764.0,95763.0,0.11350517]
[1734889530815,5.07888338,95764.0,95763.0,0.11350517]
[1734889531250,4.52988338,95764.0,95763.0,0.11350517]
[1734889531456,4.22688338,95764.0,95763.0,0.11350517]
[1734889531657,4.01188338,95764.0,95763.0,0.11350517]
[1734889531890,3.45388338,95764.0,95763.0,0.11350517]
[1734889533035,3.55388338,95764.0,95763.0,0.11350517]
[1734889543263,3.55388338,95764.0,95763.0,0.1080004]
[1734889543470,3.65388338,95764.0,95763.0,0.1080004]
[1734889543844,3.65388338,95764.0,95763.0,0.04263227]
[1734889544305,3.65388338,95764.0,95763.0,0.03863227]
[1734889545076,3.64638971,95764.0,95763.0,0.03863227]
[1734889545281,0.79938971,95764.0,95763.0,0.03863227]
[1734889545485,5.27138971,95764.0,95763.0,0.03863227]
[1734889545852,5.27138971,95764.0,95763.0,0.03766227]
[1734889547827,5.12638971,95764.0,95763.0,0.03766227]
[1734889548693,4.91838971,95764.0,95763.0,0.03766227]
[1734889549094,3.94418971,95764.0,95763.0,0.03766227]
[1734889549444,3.96674277,95764.0,95763.0,0.03766227]
[1734889550973,3.96674277,95764.0,95763.0,0.03783347]
[1734889551358,3.96682837,95764.0,95763.0,0.03783347]
[1734889551561,3.76682837,95764.0,95763.0,0.03783347]
[1734889551786,0.37282837,95764.0,95763.0,0.03783347]
[1734889551959,0.35209261,95764.0,95763.0,0.12103347]
[1734889552166,0.32953955,95764.0,95763.0,0.16743347]
[1734889552575,0.110394,95764.0,95763.0,0.16743347]
[1734889552974,0.110394,95764.0,95763.0,0.37628147]
[1734889553381,0.09400606,95771.0,95770.0,0.208833]
[1734889553561,0.19531446,95771.0,95770.0,0.338433]
[1734889554218,0.09400606,95771.0,95770.0,0.338433]
[1734889554471,0.208788,95791.0,95778.0,0.208814]
[1734889554639,0.208788,95791.0,95779.0,0.1224]
[1734889554845,0.1013941,95780.0,95779.0,0.1224]
[1734889555275,8.57e-05,95780.0,95779.0,0.1224]
[1734889556242,8.57e-05,95780.0,95779.0,0.12344393]
[1734889556694,0.01051232,95794.0,95781.0,0.1224]
[1734889556885,0.01051232,95794.0,95781.0,0.12344389]
[1734889558138,0.01051232,95794.0,95781.0,0.12444389]
[1734889558549,0.01051232,95794.0,95781.0,0.12344389]
[1734889559975,0.01051232,95794.0,95781.0,0.12844389]
[1734889561214,0.01051232,95794.0,95781.0,0.1274]
[1734889561419,0.4832011,95782.0,95781.0,0.0809]
[1734889561563,0.4832011,95782.0,95781.0,0.005]
[1734889563019,0.173,95781.0,95773.0,0.076]
[1734889563137,0.208824,95774.0,95773.0,0.076]
[1734889563345,0.3101324,95774.0,95773.0,0.076]
[1734889564608,0.15,95773.0,95763.0,0.11353347]
[1734889564808,0.208846,95764.0,95763.0,0.11353347]
[1734889565140,0.3101544,95764.0,95763.0,0.11353347]
[1734889565929,0.1013084,95764.0,95763.0,0.11353347]
[1734889567243,0.2743084,95764.0,95763.0,0.03783347]
[1734889568009,0.2743084,95764.0,95763.0,0.04183347]
[1734889568218,0.2743084,95764.0,95763.0,0.03783347]
[1734889568401,0.2753084,95764.0,95763.0,0.03783347]
[1734889569029,0.28571677,95764.0,95763.0,0.03783347]
[1734889572175,0.1023084,95764.0,95763.0,0.03783347]
[1734889572391,0.001,95764.0,95763.0,0.32342558]
[1734889572627,0.001,95764.0,95763.0,0.32238147]
[1734889573058,0.001,95764.0,95763.0,0.37188147]
[1734889573846,8.57e-05,95782.0,95778.0,0.208815]
[1734889574055,0.1013084,95781.0,95779.0,0.0757]
[1734889574835,0.1013084,95781.0,95780.0,0.258311]
[1734889577158,0.1013084,95781.0,95780.0,0.262311]
[1734889579694,8.57e-05,95782.0,95780.0,0.262311]
[1734889579902,8.57e-05,95782.0,95781.0,0.0010439]
[1734889580601,8.57e-05,95782.0,95781.0,0.0767439]
[1734889581388,8.57e-05,95782.0,95781.0,0.0807439]
[1734889581590,8.57e-05,95782.0,95781.0,0.0767439]
[1734889582163,8.57e-05,95782.0,95781.0,0.0817439]
[1734889582368,0.01056296,95807.0,95781.0,0.0817439]
[1734889582564,0.1243084,95806.0,95783.0,0.0757]
[1734889582766,0.1243084,95806.0,95799.0,0.0757]
[1734889583064,0.1013084,95806.0,95799.0,0.0757]
[1734889583293,0.1013084,95806.0,95800.0,0.208768]
[1734889584102,0.1013084,95806.0,95799.0,0.0757]
[1734889584103,0.10136252,95806.0,95799.0,0.0757]